bitfinex/quotes_ETHUSD_20250331
["timestamp","ask_amount","ask_price","bid_price","bid_amount"]
[1743388273615,5.95,1812.2,1811.8,6.32193]
[1743388273912,5.95,1812.2,1811.9,11.03787]
[1743388274112,0.7691,1812.5,1811.9,0.55]
[1743388274294,0.7691,1812.5,1812.2,5.5181]
[1743388274490,0.7691,1812.5,1812.1,6.3455]
[1743388274693,5.51775,1812.4,1812.0,11.04271]
[1743388274904,5.5179,1812.3,1812.0,5.524]
[1743388275696,8.22591375,1812.3,1812.0,5.524]
[1743388275901,2.70801375,1812.3,1812.0,5.524]
[1743388276082,2.70801375,1812.3,1812.0,16.56133]
[1743388276287,0.42309393,1812.4,1812.1,6.34549]
[1743388276512,8.99450375,1812.5,1812.1,6.34535]
[1743388276686,9.89395413,1812.5,1812.1,0.8271]
[1743388276887,15.41149413,1812.5,1812.1,0.8271]
[1743388277082,1.66855038,1812.5,1812.1,6.3453]
[1743388277415,9.42711375,1812.7,1812.3,5.51762]
[1743388277617,15.35428275,1812.7,1812.2,5.51809]
[1743388277789,5.51694,1812.6,1812.2,5.51809]
[1743388277988,15.35428275,1812.7,1811.9,11.04182]
[1743388277989,8.22599375,1812.3,1811.9,6.34587]
[1743388278188,14.51324375,1812.3,1811.9,5.523]
[1743388278416,15.96456813,1812.3,1811.9,11.04204]
[1743388278924,10.44641813,1812.3,1811.9,16.56091]
[1743388279213,10.44641813,1812.3,1811.9,11.04187]
[1743388279620,10.44641813,1812.3,1811.9,11.04186]
[1743388279820,4.92843813,1812.3,1812.0,5.5186]
[1743388279992,4.92843813,1812.3,1811.9,11.04186]
[1743388280184,4.92843813,1812.3,1812.0,5.51875]
[1743388281698,0.7926,1812.7,1812.5,5.51708]
[1743388281911,12.25865,1812.9,1812.5,5.51708]
[1743388282215,12.25865,1812.9,1812.4,6.28582]
[1743388282216,8.22436375,1812.8,1812.4,6.28582]
[1743388282422,4.16131513,1812.8,1812.5,5.51722]
[1743388282791,4.16131513,1812.8,1812.4,6.28582]
[1743388282792,9.67766513,1812.8,1812.4,6.28582]
[1743388283013,4.16131513,1812.8,1812.4,6.28582]
[1743388283213,9.67784513,1812.8,1812.3,11.0408]
[1743388283491,5.51664,1812.7,1812.3,11.0408]
[1743388283713,7.03608851,1812.7,1812.3,11.0408]
[1743388284424,12.55294851,1812.7,1812.3,11.0408]
[1743388284617,7.03608851,1812.7,1812.3,16.55844]
[1743388284922,5.5164,1812.8,1812.4,5.51749]
[1743388286042,11.4664,1812.8,1812.4,5.51749]
[1743388286425,11.4664,1812.8,1812.4,11.03492]
[1743388286604,11.4664,1812.8,1812.4,5.51743]
[1743388286801,5.51666,1812.7,1812.3,11.04084]
[1743388287106,1.344266,1812.6,1812.3,11.04084]
[1743388287289,0.7926,1812.6,1812.3,11.04084]
[1743388288125,0.7926,1812.6,1812.3,5.51784]
[1743388288596,0.7926,1812.6,1812.4,5.51751]
[1743388288921,0.7926,1812.6,1812.1,5.51845]
[1743388289104,6.30965,1812.6,1812.2,5.51803]
[1743388289304,7.80066576,1812.6,1812.2,5.51803]
[1743388289927,0.7926,1812.6,1812.2,0.822]
[1743388290128,6.7392,1812.8,1812.5,5.51724]
[1743388290311,0.7892,1812.8,1812.6,5.51691]
[1743388291427,11.46572,1813.0,1812.5,1.372]
[1743388291428,6.7392,1813.0,1812.5,1.372]
[1743388291594,6.7392,1813.2,1813.1,5.51541]
[1743388291796,0.7892,1813.6,1813.2,5.51482]
[1743388292006,6.7392,1813.8,1813.5,5.51419]
[1743388292209,0.7892,1813.8,1813.5,5.51404]
[1743388292415,9.38646758,1813.8,1813.3,5.5145]
[1743388292636,6.45240676,1813.7,1813.4,5.52]
[1743388293406,0.7892,1813.6,1813.4,5.52]
[1743388294841,6.30315,1813.6,1813.4,5.52]
[1743388295239,0.7892,1813.6,1813.4,5.52]
[1743388297813,0.7892,1813.6,1813.4,11.03437]
[1743388298018,9.03385758,1813.8,1813.5,5.51398]
[1743388298019,6.7392,1813.8,1813.5,5.51398]
[1743388298219,6.7392,1813.8,1813.5,11.02797]
[1743388299035,6.7392,1813.8,1813.5,5.51398]
[1743388299751,6.7392,1813.8,1813.4,11.03447]
[1743388299950,6.7392,1813.8,1813.4,16.54879]
[1743388300152,6.7392,1813.8,1813.5,5.51417]
[1743388300628,6.7392,1813.8,1813.6,5.51382]
[1743388300825,0.1,1813.9,1813.8,5.51328]
[1743388301053,0.1,1813.9,1813.8,12.40328]
[1743388307061,0.1,1813.9,1813.8,12.40128]
[1743388309956,0.1,1813.9,1813.8,13.4957326]
[1743388311356,0.1,1813.9,1813.8,16.4957326]
[1743388311538,0.7982,1814.8,1814.5,5.51106]
[1743388312034,6.30849,1814.8,1814.4,11.02645]
[1743388312927,0.7982,1814.8,1814.5,5.51096]
[1743388313125,0.1,1814.9,1814.8,5.51024]
[1743388313332,0.1,1814.9,1814.7,5.51044]
[1743388313568,0.8982,1814.9,1814.6,5.51078]
[1743388313780,0.8982,1814.9,1814.6,5.51067]
[1743388313941,0.1,1814.9,1814.7,11.0209]
[1743388314267,0.1,1814.9,1814.8,11.02424]
[1743388314476,0.1,1814.9,1814.8,11.77974]
[1743388314876,0.1,1814.9,1814.8,12.32974]
[1743388319257,0.1,1814.9,1814.8,11.57424]
[1743388319453,0.876,1814.9,1814.6,5.51083]
[1743388319662,0.876,1814.9,1814.6,11.02383]
[1743388319856,0.876,1814.9,1814.7,5.51033]
[1743388320091,0.1,1814.9,1814.8,5.51024]
[1743388320601,0.1,1814.9,1814.8,6.06024]
[1743388321009,0.1,1814.9,1814.8,9.87224]
[1743388321983,0.1,1814.9,1814.8,15.38424]
[1743388323659,0.1,1814.9,1814.8,29.88424]
[1743388323859,0.1,1814.9,1814.8,24.37224]
[1743388324091,0.1,1814.9,1814.8,15.38324]
[1743388324877,0.1,1814.9,1814.8,15.79388515]
[1743388325792,0.1,1814.9,1814.8,16.90616819]
[1743388327281,0.1,1814.9,1814.8,10.43452304]
[1743388327466,0.1,1814.9,1814.8,15.94452304]
[1743388328168,0.1,1814.9,1814.8,16.49452304]
[1743388328890,0.1,1814.9,1814.8,15.94452304]
[1743388329100,0.1,1814.9,1814.8,16.49452304]
[1743388329665,0.1,1814.9,1814.8,6.62252304]
[1743388329873,0.876,1814.9,1814.8,6.62228304]
[1743388330072,0.876,1814.9,1814.4,38.12821]
[1743388330073,0.876,1814.9,1814.6,5.51084]
[1743388330273,6.28657,1814.7,1814.4,31.805]
[1743388330471,0.776,1814.7,1814.5,5.51]
[1743388330911,0.776,1814.7,1814.5,11.02102]
[1743388331109,0.776,1814.7,1814.6,5.51085]
[1743388331400,0.776,1814.7,1814.5,16.53204]
[1743388331605,0.776,1814.7,1814.5,11.02102]
[1743388331776,0.776,1814.8,1814.5,11.02102]
[1743388332504,0.776,1814.8,1814.4,37.86642]
[1743388332812,0.814,1814.4,1814.1,14.5]
[1743388333010,6.32607,1814.2,1813.9,5.51]
[1743388333324,0.814,1814.2,1813.9,11.02278]
[1743388333476,0.814,1814.2,1814.0,5.51255]
[1743388333676,0.814,1814.4,1814.2,5.51185]
[1743388333872,0.814,1814.4,1814.1,6.06231]
[1743388334300,5.51182,1814.3,1813.9,5.51279]
[1743388334476,1.7904,1814.4,1814.0,5.51261]
[1743388334684,0.814,1814.4,1814.1,5.5122]
[1743388334884,6.32546,1814.4,1814.0,5.51267]
[1743388336203,0.814,1814.4,1814.1,5.51229]
[1743388336576,0.814,1814.4,1814.2,5.51]
[1743388337075,0.814,1814.4,1814.3,5.51176]
[1743388337281,5.95,1814.5,1814.3,5.51176]
[1743388338082,0.814,1814.8,1814.6,5.51069]
[1743388338281,0.814,1814.8,1814.7,14.5]
[1743388339189,0.814,1814.8,1814.6,5.511]
[1743388339801,0.814,1814.8,1814.6,20.011]
[1743388340001,0.814,1814.8,1814.5,5.51098]
[1743388340381,7.26678,1814.8,1814.3,16.53421]
[1743388340582,5.51074,1814.7,1814.3,11.0226]
[1743388341125,0.814,1814.6,1814.3,11.0226]
[1743388341312,5.51127,1814.5,1814.0,20.8445]
[1743388341615,0.814,1814.3,1814.1,5.51]
[1743388342526,0.814,1814.3,1813.9,5.51297]
[1743388342806,0.814,1814.3,1814.0,5.51]
[1743388343013,3.0,1814.6,1814.2,5.51183]
[1743388343014,0.814,1814.5,1814.2,5.51183]
[1743388343314,0.814,1814.5,1814.3,5.51173]
[1743388343891,0.814,1814.5,1814.2,5.51199]
[1743388344195,0.814,1814.5,1814.4,5.51146]
[1743388344385,0.814,1814.5,1814.3,5.51155]
[1743388344976,3.814,1814.7,1814.4,5.511]
[1743388345181,0.814,1814.7,1814.4,11.0223]
[1743388345485,0.814,1814.7,1814.4,11.02221]
[1743388345791,0.814,1814.7,1814.4,16.53355]
[1743388345991,0.814,1814.7,1814.5,5.51109]
[1743388346188,0.914,1814.9,1814.4,6.893]
[1743388346506,0.914,1814.9,1814.6,5.51058]
[1743388346720,0.914,1814.9,1814.8,5.51024]
[1743388346915,0.1,1814.9,1814.8,5.51024]
[1743388347222,0.1,1814.9,1814.7,5.51052]
[1743388347511,0.814,1814.8,1814.6,5.51]
[1743388348111,6.32427,1814.8,1814.4,5.51144]
[1743388348311,0.7721,1814.6,1814.3,5.51]
[1743388348632,0.7721,1814.6,1814.3,11.02158]
[1743388349012,0.7721,1814.6,1814.4,5.51145]
[1743388349413,0.7721,1814.6,1814.5,5.51116]
[1743388349595,0.7721,1814.8,1814.5,5.51101]
[1743388349794,0.7721,1814.8,1814.4,5.51144]
[1743388349795,6.28237,1814.8,1814.4,5.51144]
[1743388351289,6.28237,1814.8,1814.4,5.51145]
[1743388351290,0.7721,1814.8,1814.4,5.51145]
[1743388351513,0.7721,1814.8,1814.4,1.3511]
[1743388351720,0.7721,1814.8,1814.6,5.51074]
[1743388352319,0.7721,1814.8,1814.5,5.5109]
[1743388352724,0.7721,1814.8,1814.4,6.86251]
[1743388352911,6.2824,1814.8,1814.4,6.86251]
[1743388353118,5.51056,1814.7,1814.3,5.51152]
[1743388353298,6.28295,1814.6,1814.3,5.51]
[1743388353487,0.7721,1814.6,1814.3,11.02171]
[1743388353692,0.7721,1814.6,1814.3,5.51]
[1743388353925,6.28303,1814.6,1814.3,5.51]
[1743388354424,0.7721,1814.6,1814.3,11.02161]
[1743388355124,0.7721,1814.6,1814.4,5.51144]
[1743388355319,0.7721,1814.6,1814.3,16.53317]
[1743388355642,0.7721,1814.6,1814.4,5.51133]
[1743388355829,0.7721,1814.8,1814.5,5.51116]
[1743388356997,6.28235,1814.8,1814.4,5.51133]
[1743388357240,0.7721,1814.8,1814.5,5.51112]
[1743388358323,6.28237,1814.8,1814.3,5.51174]
[1743388358522,6.28237,1814.8,1814.2,31.816]
[1743388358523,0.7721,1814.4,1814.2,31.816]
[1743388358823,5.51176,1814.3,1814.2,31.816]
[1743388359324,0.7721,1814.1,1813.5,5.51394]
[1743388359520,0.7721,1814.1,1813.6,5.51382]
[1743388359521,0.7721,1813.8,1813.6,5.51382]
[1743388359824,0.7721,1814.0,1813.7,5.51345]
[1743388360327,5.51318,1813.9,1813.5,5.51]
[1743388360621,5.51318,1813.9,1813.4,37.32849]
[1743388360826,5.51318,1813.9,1813.5,5.509]
[1743388361029,0.7721,1814.0,1813.5,11.02305]
[1743388361229,6.28495,1814.0,1813.6,5.51377]
[1743388362133,0.7721,1814.0,1813.6,5.51377]
[1743388362299,6.28491,1814.0,1813.6,5.51377]
[1743388362794,8.07226235,1814.0,1813.5,5.51414]
[1743388363002,2.55945235,1814.0,1813.5,5.51]
[1743388363231,0.7721,1814.0,1813.6,5.5137]
[1743388363603,0.7721,1814.0,1813.7,5.51355]
[1743388364303,5.51332,1813.8,1813.4,37.3282]
[1743388364503,5.51376,1813.7,1813.4,37.324]
[1743388364729,5.51361,1813.7,1813.4,37.324]
[1743388365510,6.7357,1813.8,1813.4,42.83826]
[1743388365711,6.7357,1813.8,1813.5,5.51418]
[1743388366010,6.7357,1813.8,1813.4,42.83826]
[1743388366011,12.24901,1813.8,1813.4,42.83826]
[1743388366331,17.76257,1813.8,1813.4,42.83826]
[1743388366531,5.5136,1813.7,1813.4,37.324]
[1743388367195,12.2491,1813.8,1813.4,37.324]
[1743388367404,5.5136,1813.7,1813.4,37.324]
[1743388368303,5.5136,1813.7,1813.4,38.42333584]
[1743388369538,13.78153335,1813.8,1813.4,43.93779584]
[1743388370632,6.7357,1813.8,1813.6,5.51381]
[1743388371048,5.95,1813.8,1813.7,5.51359]
[1743388371336,0.7857,1814.3,1814.0,5.51248]
[1743388371635,6.29693,1814.5,1814.1,5.51222]
[1743388371809,3.07623346,1814.6,1814.1,5.51217]
[1743388371810,5.51086,1814.6,1814.1,5.51217]
[1743388372012,6.2965,1814.7,1814.3,5.51164]
[1743388372435,6.2965,1814.7,1814.2,5.51184]
[1743388372734,5.51086,1814.6,1814.2,5.51184]
[1743388373316,5.51086,1814.6,1814.2,11.02369]
[1743388373724,5.51193,1814.3,1813.8,11.83748]
[1743388374036,5.51212,1814.2,1813.8,11.02408]
[1743388374244,0.7857,1814.0,1813.8,5.511]
[1743388375107,0.7857,1814.0,1813.8,11.02427]
[1743388375308,0.7857,1814.2,1813.9,5.51274]
[1743388375504,6.29779,1814.2,1813.9,0.55]
[1743388375708,6.29779,1814.2,1813.9,5.51295]
[1743388375709,0.7857,1814.2,1813.9,5.51295]
[1743388377235,5.51248,1814.1,1813.8,5.511]
[1743388377437,7.478776,1814.2,1813.8,11.02415]
[1743388377814,1.966666,1814.2,1813.9,5.51293]
[1743388378216,0.7857,1814.2,1813.9,5.51283]
[1743388378415,0.7857,1814.2,1814.0,5.51256]
[1743388378717,0.7857,1814.2,1813.9,5.51283]
[1743388379318,0.7857,1814.2,1813.8,11.02426]
[1743388379517,6.29784,1814.2,1813.8,16.53731]
[1743388379842,0.7857,1814.2,1813.8,16.53731]
[1743388380839,0.7857,1814.2,1813.9,5.51286]
[1743388381045,11.46072,1814.7,1814.2,5.51187]
[1743388381257,0.7809,1814.6,1814.4,5.51125]
[1743388381420,7.24287789,1814.7,1814.4,5.51125]
[1743388382148,5.95,1814.7,1814.4,5.51125]
[1743388382441,5.95,1814.7,1814.5,11.02192]
[1743388382640,5.95,1814.7,1814.5,5.51095]
[1743388384343,0.1,1814.9,1814.3,0.8148]
[1743388384544,0.1,1814.9,1814.8,5.51024]
[1743388386536,0.1,1814.9,1814.6,5.51084]
[1743388386742,0.1,1814.9,1814.7,5.509]
[1743388386937,1.441873,1814.9,1814.7,5.509]
[1743388387152,6.951933,1814.9,1814.4,11.02257]
[1743388387458,6.951933,1814.9,1814.3,32.6368]
[1743388387459,0.7809,1814.7,1814.3,31.822]
[1743388387668,8.58738346,1814.6,1814.3,31.822]
[1743388387960,6.29218,1814.5,1814.3,31.822]
[1743388388143,11.80361,1814.5,1814.3,31.822]
[1743388388547,0.7809,1814.5,1814.3,31.822]
[1743388389368,5.51146,1814.4,1814.1,5.508]
[1743388389536,5.51146,1814.4,1814.0,5.51238]
[1743388389736,6.29229,1814.5,1813.9,6.3228]
[1743388389737,0.7809,1814.5,1813.9,6.3228]
[1743388389948,0.7809,1814.5,1814.1,5.51216]
[1743388390331,0.7809,1814.5,1814.2,5.51206]
[1743388392056,0.7809,1814.5,1814.2,11.02393]
[1743388392261,0.7809,1814.5,1814.2,5.51187]
[1743388393558,0.7809,1814.5,1814.2,11.02375]
[1743388393727,0.7809,1814.5,1814.2,5.51187]
[1743388394131,6.29212,1814.5,1814.1,5.51237]
[1743388394326,0.7809,1814.5,1814.2,5.512]
[1743388394558,0.7809,1814.5,1814.3,5.51176]
[1743388394759,0.7809,1814.5,1814.2,5.512]
[1743388395159,6.29207,1814.5,1814.1,5.51235]
[1743388395546,0.7809,1814.5,1814.2,5.51205]
[1743388395860,0.7809,1814.5,1814.1,5.51214]
[1743388396264,6.29221,1814.5,1814.1,5.51214]
[1743388396460,0.7809,1814.5,1813.9,11.83573]
[1743388396630,0.7809,1814.5,1814.2,5.5118]
[1743388396835,0.7809,1814.5,1814.3,5.51176]
[1743388397566,0.7809,1814.5,1814.2,5.5118]
[1743388397864,0.7809,1814.5,1814.1,6.06236]
[1743388398031,5.51229,1814.2,1813.7,11.02702]
[1743388398238,6.29769,1814.0,1813.6,38.08497]
[1743388398437,6.29769,1814.0,1813.6,37.324]
[1743388398734,5.51301,1813.9,1813.6,37.324]
[1743388398941,6.29769,1814.0,1813.6,42.83787]
[1743388399136,3.07623346,1813.8,1813.2,0.7552]
[1743388399342,3.07623346,1813.8,1812.2,14.5597]
[1743388399343,5.51464,1813.4,1812.9,37.33287]
[1743388399539,5.51494,1813.3,1812.9,42.84087]
[1743388399848,0.7849,1813.2,1812.9,37.325]
[1743388400159,0.7849,1813.2,1812.9,42.84087]
[1743388400349,0.7849,1813.2,1813.0,5.51568]
[1743388400746,0.7849,1813.6,1813.0,5.51571]
[1743388400938,0.7849,1813.6,1813.4,5.5142]
[1743388401140,6.7349,1814.2,1813.8,5.51299]
[1743388401339,5.95,1814.4,1814.1,5.51237]
[1743388401587,0.7849,1814.5,1813.7,0.55]
[1743388401756,5.51179,1814.3,1813.9,5.51282]
[1743388401959,5.51179,1814.3,1814.0,14.5]
[1743388402155,5.51164,1814.4,1814.0,14.5]
[1743388402373,5.51164,1814.4,1814.0,20.01266]
[1743388402759,0.7849,1814.5,1814.2,5.51194]
[1743388402955,0.7849,1814.5,1814.3,5.51175]
[1743388403152,14.53653346,1814.8,1814.4,5.51126]
[1743388403153,6.7349,1814.8,1814.4,5.51126]
[1743388403389,3.0,1814.7,1814.4,5.51126]
[1743388403591,13.5357673,1814.8,1814.4,5.51126]
[1743388404488,5.5106,1814.7,1814.2,5.51178]
[1743388404697,5.51093,1814.6,1814.3,5.508]
[1743388404998,6.29662,1814.4,1813.8,32.5782]
[1743388405203,6.29662,1814.4,1814.1,5.508]
[1743388405774,6.501093,1814.5,1814.3,5.51155]
[1743388405775,5.95,1814.5,1814.3,5.51155]
[1743388405993,3.0,1814.5,1814.3,5.51165]
[1743388406393,0.1,1814.9,1814.6,5.51065]
[1743388406598,0.1,1814.9,1814.8,5.51024]
[1743388408195,0.1,1814.9,1814.8,11.56824]
[1743388410272,0.1,1814.9,1814.8,26.06824]
[1743388411695,0.1,1814.9,1814.8,11.56824]
[1743388412096,0.1,1814.9,1814.8,26.06824]
[1743388412573,0.1,1814.9,1814.8,26.86254]
[1743388413904,0.1,1814.9,1814.8,29.86254]
[1743388414315,5.95,1815.7,1815.5,5.50801]
[1743388414597,6.33996,1815.8,1815.4,5.506]
[1743388414778,0.1,1815.9,1815.6,5.50782]
[1743388414975,0.8327,1816.6,1816.4,5.50538]
[1743388415167,0.8327,1816.6,1815.9,0.7943]
[1743388415480,5.50509,1816.5,1816.0,11.0226]
[1743388415676,5.50544,1816.4,1815.8,5.50705]
[1743388415904,0.8327,1816.2,1815.9,5.517]
[1743388416212,6.33883,1816.2,1815.9,5.517]
[1743388416603,6.33883,1816.2,1815.9,5.516]
[1743388417180,6.33883,1816.2,1815.8,5.513]
[1743388417399,6.33883,1816.2,1815.8,11.0202]
[1743388417596,5.50674,1816.0,1815.6,11.02078]
[1743388417827,6.33985,1815.9,1815.5,5.513]
[1743388418166,11.84703,1815.9,1815.5,5.513]
[1743388418495,5.50741,1815.8,1815.4,5.514]
[1743388419186,5.95,1815.8,1815.2,5.50876]
[1743388419380,6.34048,1815.7,1815.1,37.31833]
[1743388419581,5.50797,1815.6,1815.2,5.513]
[1743388420269,5.50797,1815.6,1815.1,37.31833]
[1743388420476,5.50817,1815.5,1815.1,42.82933]
[1743388420969,15.16827046,1815.6,1815.1,48.33866]
[1743388421166,17.600047,1815.6,1815.1,42.82933]
[1743388421368,12.092037,1815.6,1815.1,42.82933]
[1743388421568,6.584067,1815.6,1815.2,5.50888]
[1743388421782,5.95,1815.6,1815.5,5.50812]
[1743388422100,0.8327,1815.7,1815.5,5.50791]
[1743388422400,0.8327,1815.9,1815.7,5.50751]
[1743388422607,0.8327,1815.9,1815.6,5.50782]
[1743388423407,1.51097,1815.9,1815.4,5.50813]
[1743388423580,1.51097,1815.9,1815.5,5.517]
[1743388423906,5.50766,1815.7,1815.4,5.522]
[1743388426105,5.50783,1815.6,1815.2,5.50876]
[1743388426321,6.33853,1815.6,1815.1,42.83329]
[1743388426599,5.50844,1815.4,1815.1,31.809]
[1743388426798,1.464553,1815.6,1815.1,31.809]
[1743388426799,6.33958,1815.3,1815.1,31.809]
[1743388427499,11.84858,1815.3,1815.1,31.809]
[1743388427705,6.33958,1815.3,1815.1,31.809]
[1743388428004,11.84858,1815.3,1815.1,31.809]
[1743388428606,6.33958,1815.3,1815.1,31.809]
[1743388428803,3.0,1815.4,1815.1,37.31814]
[1743388429605,3.0,1815.4,1815.2,5.509]
[1743388429809,6.7807,1815.5,1815.2,5.5088]
[1743388431183,8.009553,1815.5,1815.1,31.809]
[1743388431387,5.50846,1815.4,1815.1,37.319]
[1743388431907,6.7807,1815.5,1815.1,42.82833]
[1743388432090,12.28896,1815.5,1815.1,42.82815]
[1743388432606,6.33896,1815.5,1815.1,42.82815]
[1743388433306,0.8307,1815.5,1815.1,42.82813]
[1743388433600,0.8307,1815.5,1815.2,5.50894]
[1743388433909,6.33891,1815.5,1815.1,42.82813]
[1743388434208,6.33891,1815.5,1815.1,11.01913]
[1743388434709,5.50949,1815.1,1814.6,5.51065]
[1743388434892,11.01906,1815.1,1814.6,5.51065]
[1743388435605,5.50975,1815.0,1814.6,5.51065]
[1743388435801,5.50949,1815.1,1814.5,5.504]
[1743388435802,6.34089,1814.9,1814.5,5.504]
[1743388436229,6.34089,1814.9,1814.5,11.01497]
[1743388437006,0.8307,1814.9,1814.6,5.51066]
[1743388437207,14.84976,1815.1,1814.6,11.02145]
[1743388437376,16.929776,1815.1,1814.6,5.51066]
[1743388437675,5.50964,1815.0,1814.6,5.51066]
[1743388438111,5.50964,1815.0,1814.5,11.01515]
[1743388438408,11.02015,1814.9,1814.5,5.504]
[1743388438907,6.29576,1814.7,1814.4,14.5]
[1743388439211,5.51102,1814.6,1814.1,0.1]
[1743388439418,5.51129,1814.5,1814.1,0.1]
[1743388439711,5.51189,1814.3,1814.1,0.1]
[1743388439903,5.51207,1814.2,1814.1,0.1]
[1743388440497,6.29717,1814.2,1814.1,0.1]
[1743388440797,7.67024635,1814.2,1814.1,0.1]
[1743388443388,10.67024635,1814.2,1814.1,0.1]
[1743388443586,16.62024635,1814.2,1814.1,0.1]
[1743388447920,5.95,1814.3,1814.1,0.1]
[1743388448093,5.95,1814.8,1814.4,5.5112]
[1743388448288,0.7851,1814.9,1814.4,5.573]
[1743388448289,3.7851,1814.9,1814.4,5.573]
[1743388448493,9.29505,1814.9,1814.4,5.573]
[1743388448737,3.7851,1814.9,1814.4,11.08442]
[1743388449021,5.95,1815.0,1814.4,11.08442]
[1743388449022,5.95,1815.0,1814.5,5.51116]
[1743388449239,6.7351,1815.2,1814.8,5.51018]
[1743388449394,3.0,1815.3,1814.9,5.578]
[1743388449599,8.50874,1815.3,1814.9,5.578]
[1743388450033,11.0172,1815.4,1814.9,11.08789]
[1743388450209,5.50874,1815.3,1814.9,11.08794]
[1743388450409,3.0,1815.3,1814.9,11.08794]
[1743388450810,3.0,1815.3,1814.8,5.5101]
[1743388451015,5.50891,1815.3,1814.9,11.0859]
[1743388451211,5.50845,1815.4,1814.9,11.0859]
[1743388451418,3.0,1815.4,1815.0,11.01889]
[1743388451817,3.0,1815.4,1815.0,5.50939]
[1743388452229,11.80175,1815.5,1815.0,5.50939]
[1743388452428,5.50852,1815.4,1815.0,5.50939]
[1743388452625,6.29338,1815.5,1815.0,5.50939]
[1743388453135,3.0,1815.6,1815.1,5.50933]
[1743388453443,6.26489,1815.7,1815.2,5.5089]
[1743388453609,3.0,1815.6,1815.2,11.01767]
[1743388453811,8.50785,1815.6,1815.2,5.50877]
[1743388454440,3.0,1815.6,1815.2,11.01767]
[1743388454641,8.95,1815.6,1815.2,5.50877]
[1743388454942,14.45782,1815.6,1815.2,5.50877]
[1743388455244,14.45782,1815.6,1815.1,5.50933]
[1743388455540,14.45782,1815.6,1815.2,5.509]
[1743388456344,14.45782,1815.6,1815.1,5.50933]
[1743388457007,14.45782,1815.6,1815.0,6.34133]
[1743388457008,8.95,1815.6,1815.0,6.34112]
[1743388457408,14.45782,1815.6,1815.1,5.50917]
[1743388457616,14.45782,1815.6,1815.2,5.50891]
[1743388457908,14.45782,1815.6,1815.1,5.50917]
[1743388458125,19.9659,1815.6,1815.1,11.01836]
[1743388458645,6.7071,1816.0,1815.8,5.50705]
[1743388458811,5.95,1816.2,1815.8,5.50699]
[1743388459015,11.45622,1816.2,1815.7,11.07125]
[1743388459344,3.0,1816.1,1815.7,11.07125]
[1743388459640,5.50632,1816.1,1815.7,11.07125]
[1743388460739,0.7571,1816.3,1815.8,6.33873]
[1743388460740,5.50596,1816.3,1815.8,6.33873]
[1743388461046,5.50596,1816.3,1815.8,11.84581]
[1743388461278,5.50596,1816.3,1815.8,6.33873]
[1743388461413,5.50606,1816.2,1815.9,5.559]
[1743388461723,5.50606,1816.2,1815.8,0.8317]
[1743388461724,5.50635,1816.1,1815.8,0.8317]
[1743388461918,6.29336,1816.2,1815.7,5.50751]
[1743388462146,6.922696,1816.2,1815.8,5.555]
[1743388463543,3.0,1816.3,1816.0,5.50656]
[1743388464912,3.0,1816.3,1815.8,11.06215]
[1743388465116,5.50619,1816.2,1815.9,5.552]
[1743388465850,5.50619,1816.2,1815.7,5.50734]
[1743388466058,5.50619,1816.2,1815.8,5.55]
[1743388466348,5.50636,1816.1,1815.7,5.50734]
[1743388466554,11.01293,1816.1,1815.7,5.547]
[1743388466756,5.50665,1816.0,1815.7,5.547]
[1743388467053,5.50636,1816.1,1815.7,11.05444]
[1743388467250,11.01296,1816.1,1815.7,11.05444]
[1743388467439,5.50636,1816.1,1815.7,11.05444]
[1743388467825,6.356749,1816.2,1815.8,5.5072]
[1743388468330,5.50613,1816.2,1815.8,5.5072]
[1743388468536,3.0,1816.3,1816.0,5.50646]
[1743388468731,8.50572,1816.3,1815.9,5.50682]
[1743388469056,5.50601,1816.2,1815.8,5.50691]
[1743388469351,5.95,1816.4,1815.8,0.55]
[1743388469556,3.0,1816.4,1816.0,5.5066]
[1743388469854,5.95,1816.5,1816.1,11.05005]
[1743388470058,5.95,1816.5,1816.1,16.55614]
[1743388470245,5.95,1816.5,1816.2,5.5057]
[1743388470441,3.0,1816.5,1816.2,5.5057]
[1743388470644,2.9,1816.5,1816.2,5.5057]
[1743388470945,2.9,1816.5,1816.2,11.01154]
[1743388471143,8.4051,1816.5,1816.1,11.05029]
[1743388471354,8.4051,1816.5,1816.1,16.55658]
[1743388471769,8.4051,1816.5,1816.1,11.05029]
[1743388471973,13.91043,1816.5,1816.1,5.50629]
[1743388472183,8.4051,1816.5,1816.2,5.535]
[1743388472761,6.3168,1816.4,1816.0,5.5066]
[1743388473065,6.3168,1816.4,1816.0,5.50659]
[1743388473356,6.3168,1816.4,1816.0,11.03759]
[1743388473357,13.31061953,1816.4,1816.0,11.03759]
[1743388473562,5.50572,1816.3,1816.0,5.531]
[1743388473726,5.50572,1816.3,1815.9,11.0138]
[1743388473727,11.01166,1816.3,1815.9,11.0359]
[1743388473930,5.50572,1816.3,1815.9,11.0359]
[1743388474133,7.80500953,1816.4,1816.0,5.50659]
[1743388474458,5.50466,1816.7,1816.2,5.5058]